fUSD/lending_fUSD_20260531
["ID","MTS","AMOUNT","RATE_DAILY","PERIOD"]
[423518284,1780185041000,-354.0,0.00024,2]
[423518281,1780185041000,-204.0,0.00024,2]
[423518280,1780185041000,-645.0,0.00024,2]
[423518276,1780185041000,-520.0,0.00024,2]
[423518279,1780185041000,-155.0,0.00024,2]
[423518187,1780185041000,-645.0,0.00021,2]
[423518272,1780185041000,-1842.0326633,0.00023633,2]
[423518254,1780185041000,-2586.85809042,0.00022838,2]
[423518282,1780185041000,-176.0,0.00024,2]
[423518257,1780185041000,-520.0,0.00023,2]
[423518256,1780185041000,-153.0,0.00023,2]
[423518208,1780185041000,-1592.87721992,0.00021441,2]
[423518218,1780185041000,-201.93286098,0.00021989,2]
[423518220,1780185041000,-1651.81367706,0.00021989,2]
[423518222,1780185041000,-153.0,0.00022,2]
[423518224,1780185041000,-520.0,0.00022,2]
[423518216,1780185041000,-200.0,0.00021918,2]
[423518226,1780185041000,-470.0,0.00022,2]
[423518212,1780185041000,-2405.55389863,0.00021742,2]
[423518214,1780185041000,-5000.0,0.00021918,2]
[423518210,1780185041000,-150.0,0.000215,7]
[423518229,1780185041000,-215.0,0.00022,2]
[423518232,1780185041000,-645.0,0.00022,2]
[423518231,1780185041000,-155.0,0.00022,2]
[423518206,1780185041000,-194.72792766,0.00021441,2]
[423518244,1780185041000,-2494.55939288,0.0002229,2]
[423518252,1780185041000,-1712.93078311,0.00022537,2]
[423518238,1780185041000,-210.0,0.00022,2]
[423518236,1780185041000,-354.0,0.00022,2]
[423518235,1780185041000,-735.0,0.00022,2]
[423518234,1780185041000,-176.0,0.00022,2]
[423518242,1780185041000,-200.0,0.00022287,2]
[423518250,1780185041000,-599.60298507,0.00022536,2]
[423518240,1780185041000,-200.0,0.00022135,2]
[423518251,1780185041000,-209.40437684,0.00022537,2]
[423518248,1780185041000,-346.71861472,0.00022476,2]
[423518233,1780185041000,-204.0,0.00022,2]
[423518246,1780185041000,-1383.1,0.00022353,2]
[423518237,1780185041000,-450.0,0.00022,2]
[423518340,1780185042000,-377.783006,0.00024657,2]
[423518327,1780185042000,-294.669192,0.00024657,2]
[423518325,1780185042000,-933.273773,0.00024657,2]
[423518324,1780185042000,-933.273773,0.00024657,2]
[423518318,1780185042000,-199.117317,0.00024657,2]
[423518326,1780185042000,-933.273773,0.00024657,2]
[423518319,1780185042000,-268.512687,0.00024657,2]
[423518323,1780185042000,-933.273773,0.00024657,2]
[423518320,1780185042000,-268.512687,0.00024657,2]
[423518321,1780185042000,-268.512687,0.00024657,2]
[423518322,1780185042000,-268.512687,0.00024657,2]
[423518335,1780185042000,-750.633185,0.00024657,2]
[423518338,1780185042000,-750.633185,0.00024657,2]
[423518337,1780185042000,-750.633185,0.00024657,2]
[423518287,1780185042000,-1124.0,0.00024021,2]
[423518331,1780185042000,-190.825792,0.00024657,2]
[423518328,1780185042000,-294.669192,0.00024657,2]
[423518332,1780185042000,-190.825792,0.00024657,2]
[423518336,1780185042000,-750.633185,0.00024657,2]
[423518333,1780185042000,-190.825792,0.00024657,2]
[423518348,1780185042000,-272.82919498,0.00024658,4]
[423518350,1780185042000,-803.69,0.00024658,2]
[423518349,1780185042000,-1000.0,0.00024658,2]
[423518347,1780185042000,-150.0,0.00024658,4]
[423518343,1780185042000,-151.0,0.00024657,2]
[423518316,1780185042000,-199.117317,0.00024657,2]
[423518330,1780185042000,-294.669192,0.00024657,2]
[423518315,1780185042000,-625.489156,0.00024657,2]
[423518301,1780185042000,-411.16,0.000246,7]
[423518314,1780185042000,-199.117317,0.00024657,2]
[423518285,1780185042000,-500.0,0.00024,2]
[423518286,1780185042000,-210.0,0.00024,2]
[423518299,1780185042000,-2884.75459676,0.00024482,2]
[423518289,1780185042000,-151.0,0.00024097,4]
[423518297,1780185042000,-431.70969933,0.00024285,2]
[423518288,1780185042000,-700.0,0.00024049,2]
[423518290,1780185042000,-1363.72,0.00024174,2]
[423518298,1780185042000,-1383.1,0.00024324,2]
[423518291,1780185042000,-679.73,0.00024174,2]
[423518294,1780185042000,-9999.99,0.00024174,2]
[423518300,1780185042000,-772.0,0.000245,2]
[423518292,1780185042000,-9516.64,0.00024174,2]
[423518295,1780185042000,-150.99,0.00024174,2]
[423518296,1780185042000,-1910.18787185,0.00024181,2]
[423518293,1780185042000,-9999.99,0.00024174,2]
[423518304,1780185042000,-1665.8949047,0.00024657,2]
[423518303,1780185042000,-151.0,0.00024654,7]
[423518306,1780185042000,-269261.8465792,0.00024657,2]
[423518305,1780185042000,-28303.3410438,0.00024657,2]
[423518307,1780185042000,-1298.7440114,0.00024657,2]
[423518310,1780185042000,-184322.768852,0.00024657,2]
[423518312,1780185042000,-199.117317,0.00024657,2]
[423518302,1780185042000,-200.0,0.00024641,2]
[423518311,1780185042000,-625.489156,0.00024657,2]
[423518309,1780185042000,-151.0,0.00024657,2]
[423518313,1780185042000,-625.489156,0.00024657,2]
[423518308,1780185042000,-151.0,0.00024657,2]
[423518317,1780185042000,-625.489156,0.00024657,2]
[423518341,1780185042000,-377.783006,0.00024657,2]
[423518329,1780185042000,-294.669192,0.00024657,2]
[423518339,1780185042000,-377.783006,0.00024657,2]
[423518379,1780185042000,-268.512687,0.0002491,2]
[423518378,1780185042000,-268.512687,0.0002491,2]
[423518375,1780185042000,-625.489156,0.0002491,2]
[423518380,1780185042000,-268.512687,0.0002491,2]
[423518386,1780185042000,-294.669192,0.0002491,2]
[423518385,1780185042000,-294.669192,0.0002491,2]
[423518382,1780185042000,-933.273773,0.0002491,2]
[423518387,1780185042000,-294.669192,0.0002491,2]
[423518398,1780185042000,-743.36612647,0.0002491,2]
[423518388,1780185042000,-294.669192,0.0002491,2]
[423518400,1780185042000,-350.0,0.00024961,2]
[423518397,1780185042000,-750.633185,0.0002491,2]
[423518401,1780185042000,-150.0,0.00024962,4]
[423518376,1780185042000,-199.117317,0.0002491,2]
[423518390,1780185042000,-190.825792,0.0002491,2]
[423518391,1780185042000,-190.825792,0.0002491,2]
[423518394,1780185042000,-750.633185,0.0002491,2]
[423518393,1780185042000,-750.633185,0.0002491,2]
[423518392,1780185042000,-190.825792,0.0002491,2]
[423518395,1780185042000,-750.633185,0.0002491,2]
[423518402,1780185042000,-300.0,0.00024986,5]
[423518407,1780185042000,-751251.97337452,0.00025,2]
[423518405,1780185042000,-300.0,0.00024986,5]
[423518403,1780185042000,-300.0,0.00024986,5]
[423518404,1780185042000,-300.0,0.00024986,5]
[423518406,1780185042000,-300.0,0.00024986,5]
[423518408,1780185042000,-217.5,0.00025,2]
[423518344,1780185042000,-151.0,0.00024657,2]
[423518389,1780185042000,-190.825792,0.0002491,2]
[423518381,1780185042000,-933.273773,0.0002491,2]
[423518334,1780185042000,-190.825792,0.00024657,2]
[423518377,1780185042000,-268.512687,0.0002491,2]
[423518342,1780185042000,-377.783006,0.00024657,2]
[423518345,1780185042000,-288.712072,0.00024657,2]
[423518346,1780185042000,-151.0,0.00024657,2]
[423518351,1780185042000,-1980.8648231,0.00024729,2]
[423518354,1780185042000,-1481.63781,0.0002475,2]
[423518353,1780185042000,-1481.63782,0.0002475,2]
[423518356,1780185042000,-1356.0,0.00024769,2]
[423518357,1780185042000,-3550.0,0.00024769,2]
[423518362,1780185042000,-200.0,0.00024799,2]
[423518360,1780185042000,-940.667,0.00024769,2]
[423518355,1780185042000,-928.0,0.00024769,2]
[423518358,1780185042000,-1412.213,0.00024769,2]
[423518352,1780185042000,-1481.63781,0.0002475,2]
[423518359,1780185042000,-525.0,0.00024769,2]
[423518384,1780185042000,-933.273773,0.0002491,2]
[423518364,1780185042000,-151.0,0.00024907,7]
[423518361,1780185042000,-3638.0,0.00024769,2]
[423518383,1780185042000,-933.273773,0.0002491,2]
[423518369,1780185042000,-625.489156,0.0002491,2]
[423518371,1780185042000,-625.489156,0.0002491,2]
[423518372,1780185042000,-199.117317,0.0002491,2]
[423518373,1780185042000,-625.489156,0.0002491,2]
[423518370,1780185042000,-199.117317,0.0002491,2]
[423518365,1780185042000,-151.0,0.00024907,7]
[423518367,1780185042000,-151.0,0.0002491,2]
[423518366,1780185042000,-151.0,0.0002491,2]
[423518374,1780185042000,-199.117317,0.0002491,2]
[423518363,1780185042000,-14200.0,0.000249,9]
[423518368,1780185042000,-151.0,0.0002491,2]
[423518448,1780185043000,-294.669192,0.00025,2]
[423518446,1780185043000,-294.669192,0.00025,2]
[423518443,1780185043000,-933.273773,0.00025,2]
[423518458,1780185043000,-190.825792,0.00025,2]
[423518459,1780185043000,-750.633185,0.00025,2]
[423518444,1780185043000,-933.273773,0.00025,2]
[423518447,1780185043000,-294.669192,0.00025,2]
[423518454,1780185043000,-190.825792,0.00025,2]
[423518456,1780185043000,-190.825792,0.00025,2]
[423518460,1780185043000,-750.633185,0.00025,2]
[423518450,1780185043000,-294.669192,0.00025,2]
[423518445,1780185043000,-933.273773,0.00025,2]
[423518452,1780185043000,-190.825792,0.00025,2]
[423518473,1780185043000,-218.07564746,0.00025,2]
[423518463,1780185043000,-1047.61960593,0.00025,2]
[423518474,1780185043000,-151.0,0.00025,2]
[423518462,1780185043000,-750.633185,0.00025,2]
[423518472,1780185043000,-151.0,0.00025,2]
[423518464,1780185043000,-377.783006,0.00025,2]
[423518469,1780185043000,-377.783006,0.00025,2]
[423518466,1780185043000,-377.783006,0.00025,2]
[423518476,1780185043000,-573.0,0.00025082,2]
[423518471,1780185043000,-151.0,0.00025,2]
[423518470,1780185043000,-377.783006,0.00025,2]
[423518477,1780185043000,-151.0,0.00025097,4]
[423518479,1780185043000,-757.42238738,0.00025275,2]
[423518440,1780185043000,-268.512687,0.00025,2]
[423518461,1780185043000,-750.633185,0.00025,2]
[423518436,1780185043000,-1481.63781,0.00025,2]
[423518419,1780185043000,-754.54553,0.00025,2]
[423518438,1780185043000,-268.512687,0.00025,2]
[423518411,1780185043000,-161.0,0.00025,2]
[423518413,1780185043000,-482.83477829,0.00025,2]
[423518412,1780185043000,-526.70446218,0.00025,2]
[423518409,1780185043000,-124701.58988965,0.00025,2]
[423518414,1780185043000,-220.05429665,0.00025,2]
[423518410,1780185043000,-240.89526768,0.00025,7]
[423518416,1780185043000,-649.20493935,0.00025,2]
[423518427,1780185043000,-625.489156,0.00025,2]
[423518415,1780185043000,-167.0,0.00025,2]
[423518418,1780185043000,-178.37189547,0.00025,2]
[423518425,1780185043000,-199.117317,0.00025,2]
[423518422,1780185043000,-151.0,0.00025,2]
[423518423,1780185043000,-151.0,0.00025,2]
[423518420,1780185043000,-355.0,0.00025,2]
[423518478,1780185043000,-150.0,0.00025266,4]
[423518421,1780185043000,-1064.41053165,0.00025,2]
[423518429,1780185043000,-199.117317,0.00025,2]
[423518417,1780185043000,-215.0,0.00025,2]
[423518424,1780185043000,-625.489156,0.00025,2]
[423518430,1780185043000,-625.489156,0.00025,2]
[423518431,1780185043000,-199.117317,0.00025,2]
[423518433,1780185043000,-199.117317,0.00025,2]
[423518441,1780185043000,-268.512687,0.00025,2]
[423518432,1780185043000,-625.489156,0.00025,2]
[423518434,1780185043000,-1481.63781,0.00025,2]
[423518442,1780185043000,-933.273773,0.00025,2]
[423518439,1780185043000,-268.512687,0.00025,2]
[423518437,1780185043000,-1481.63782,0.00025,2]
[423518480,1780185043000,-1000.0,0.00025276,2]
[423518475,1780185043000,-2991.49051684,0.0002503,2]
[423518482,1780185043000,-1000.0,0.00025276,2]
[423518519,1780185043000,-1344.21487928,0.000261,2]
[423518522,1780185043000,-164.0,0.000261,2]
[423518524,1780185043000,-592.0,0.000261,2]
[423518514,1780185043000,-150.00000001,0.00026088,4]
[423518517,1780185043000,-263.5091373,0.000261,2]
[423518516,1780185043000,-2623.0,0.000261,2]
[423518523,1780185043000,-839.0,0.000261,2]
[423518515,1780185043000,-210.86201537,0.00026097,4]
[423518521,1780185043000,-948.31409479,0.000261,2]
[423518520,1780185043000,-9473.0,0.000261,2]
[423518525,1780185043000,-150.0,0.0002618,4]
[423518528,1780185043000,-346.71861472,0.00026265,2]
[423518526,1780185043000,-573.0,0.00026192,3]
[423518518,1780185043000,-13430.0,0.000261,2]
[423518527,1780185043000,-200.0,0.00026211,2]
[423518536,1780185043000,-828.0,0.00026464,2]
[423518532,1780185043000,-276.03176462,0.00026397,2]
[423518533,1780185043000,-27922.0151851,0.000264,2]
[423518535,1780185043000,-1175.0,0.00026464,2]
[423518529,1780185043000,-1383.1,0.00026296,2]
[423518531,1780185043000,-186.30029417,0.00026397,2]
[423518530,1780185043000,-967.79373593,0.00026397,2]
[423518538,1780185043000,-150.0,0.00026484,4]
[423518541,1780185043000,-573.0,0.00026746,3]
[423518540,1780185043000,-3436.0,0.000267,7]
[423518481,1780185043000,-1000.0,0.00025276,2]
[423518537,1780185043000,-229.0,0.00026472,2]
[423518542,1780185043000,-150.0,0.00026788,4]
[423518534,1780185043000,-350.0,0.0002644,2]
[423518513,1780185043000,-283.8,0.00026027,7]
[423518539,1780185043000,-603.59971906,0.00026658,2]
[423518506,1780185043000,-150.0,0.00025875,4]
[423518509,1780185043000,-219.84017055,0.00026,2]
[423518488,1780185043000,-2054.15682156,0.00025277,2]
[423518486,1780185043000,-1000.0,0.00025276,2]
[423518485,1780185043000,-1000.0,0.00025276,2]
[423518484,1780185043000,-1000.0,0.00025276,2]
[423518483,1780185043000,-1000.0,0.00025276,2]
[423518489,1780185043000,-967.79373593,0.00025397,2]
[423518492,1780185043000,-150.0,0.00025571,4]
[423518490,1780185043000,-186.30029417,0.00025397,2]
[423518491,1780185043000,-200.0,0.00025426,2]
[423518500,1780185043000,-12157.14160687,0.000258,2]
[423518496,1780185043000,-1363.72,0.00025786,2]
[423518499,1780185043000,-1000.0,0.000258,4]
[423518497,1780185043000,-679.73,0.00025786,2]
[423518487,1780185043000,-440.49,0.00025276,2]
[423518508,1780185043000,-4593.2465313,0.00026,2]
[423518495,1780185043000,-231.06,0.00025644,2]
[423518507,1780185043000,-610.20641585,0.0002599,2]
[423518510,1780185043000,-500.0,0.00026,2]
[423518505,1780185043000,-4917.05981759,0.00025856,2]
[423518504,1780185043000,-10258.24742002,0.00025856,2]
[423518503,1780185043000,-206.91,0.00025811,2]
[423518511,1780185043000,-550.0,0.00026,2]
[423518502,1780185043000,-1433.36794996,0.000258,2]
[423518512,1780185043000,-411.16,0.00026,7]
[423518494,1780185043000,-247.55,0.00025644,2]
[423518493,1780185043000,-573.0,0.00025637,2]
[423518498,1780185043000,-9516.64,0.00025786,2]
[423518501,1780185043000,-521.98632612,0.000258,2]
[423518579,1780185044000,-377.783006,0.0002739,2]
[423518580,1780185044000,-377.783006,0.0002739,2]
[423518584,1780185044000,-151.0,0.0002739,2]
[423518576,1780185044000,-750.633185,0.0002739,2]
[423518582,1780185044000,-377.782997,0.0002739,2]
[423518578,1780185044000,-750.633181,0.0002739,2]
[423518577,1780185044000,-750.633185,0.0002739,2]
[423518574,1780185044000,-190.8258,0.0002739,2]
[423518575,1780185044000,-750.633185,0.0002739,2]
[423518583,1780185044000,-151.0,0.0002739,2]
[423518568,1780185044000,-200.0,0.0002739,2]
[423518581,1780185044000,-377.783006,0.0002739,2]
[423518608,1780185044000,-625.489156,0.00027397,2]
[423518586,1780185044000,-1000.0,0.00027397,2]
[423518596,1780185044000,-1000.0,0.00027397,2]
[423518588,1780185044000,-1000.0,0.00027397,2]
[423518587,1780185044000,-1000.0,0.00027397,2]
[423518590,1780185044000,-1000.0,0.00027397,2]
[423518589,1780185044000,-1000.0,0.00027397,2]
[423518594,1780185044000,-1000.0,0.00027397,2]
[423518591,1780185044000,-1000.0,0.00027397,2]
[423518595,1780185044000,-1000.0,0.00027397,2]
[423518592,1780185044000,-1000.0,0.00027397,2]
[423518598,1780185044000,-1000.0,0.00027397,2]
[423518609,1780185044000,-199.117317,0.00027397,2]
[423518571,1780185044000,-190.825792,0.0002739,2]
[423518585,1780185044000,-645.19582395,0.00027397,7]
[423518570,1780185044000,-200.0,0.0002739,2]
[423518554,1780185044000,-1000.0,0.000272,10]
[423518573,1780185044000,-190.825792,0.0002739,2]
[423518605,1780185044000,-151.0,0.00027397,2]
[423518548,1780185044000,-530.0,0.00027,2]
[423518545,1780185044000,-200.0,0.00026995,2]
[423518547,1780185044000,-1051.69258083,0.00027,2]
[423518543,1780185044000,-1000.0,0.000268,5]
[423518544,1780185044000,-454.03373112,0.00026972,2]
[423518546,1780185044000,-250.0,0.00027,2]
[423518550,1780185044000,-163.07,0.00027,2]
[423518549,1780185044000,-2000.0,0.00027,2]
[423518561,1780185044000,-200.0,0.0002739,2]
[423518557,1780185044000,-880.0,0.00027311,10]
[423518553,1780185044000,-350.0,0.00027142,2]
[423518567,1780185044000,-310.89679483,0.0002739,2]
[423518560,1780185044000,-4517.780945,0.0002739,7]
[423518555,1780185044000,-167.12782538,0.000273,30]
[423518552,1780185044000,-150.0,0.00027093,4]
[423518551,1780185044000,-2455.671101,0.0002701,2]
[423518558,1780185044000,-4180.12602542,0.0002739,2]
[423518556,1780185044000,-573.0,0.00027301,4]
[423518563,1780185044000,-200.0,0.0002739,2]
[423518565,1780185044000,-200.0,0.0002739,2]
[423518564,1780185044000,-200.0,0.0002739,2]
[423518566,1780185044000,-200.0,0.0002739,2]
[423518569,1780185044000,-200.0,0.0002739,2]
[423518572,1780185044000,-190.825792,0.0002739,2]
[423518562,1780185044000,-207.00864086,0.0002739,2]
[423518559,1780185044000,-8257.98548204,0.0002739,2]
[423518597,1780185044000,-1000.0,0.00027397,2]
[423518593,1780185044000,-1000.0,0.00027397,2]
[423518602,1780185044000,-1000.0,0.00027397,2]
[423518638,1780185044000,-500.0,0.00027397,2]
[423518642,1780185044000,-500.0,0.00027397,2]
[423518645,1780185044000,-1143.0,0.00027397,2]
[423518636,1780185044000,-1143.0,0.00027397,2]
[423518634,1780185044000,-1143.0,0.00027397,2]
[423518635,1780185044000,-500.0,0.00027397,2]
[423518641,1780185044000,-1143.0,0.00027397,2]
[423518640,1780185044000,-500.0,0.00027397,2]
[423518644,1780185044000,-500.0,0.00027397,2]
[423518643,1780185044000,-500.0,0.00027397,2]
[423518639,1780185044000,-1143.0,0.00027397,2]
[423518647,1780185044000,-1143.0,0.00027397,2]
[423518646,1780185044000,-500.0,0.00027397,2]
[423518653,1780185044000,-1143.0,0.00027397,2]
[423518658,1780185044000,-500.0,0.00027397,2]
[423518652,1780185044000,-500.0,0.00027397,2]
[423518651,1780185044000,-1143.0,0.00027397,2]
[423518654,1780185044000,-500.0,0.00027397,2]
[423518657,1780185044000,-1143.0,0.00027397,2]
[423518656,1780185044000,-500.0,0.00027397,2]
[423518650,1780185044000,-500.0,0.00027397,2]
[423518649,1780185044000,-1143.0,0.00027397,2]
[423518648,1780185044000,-500.0,0.00027397,2]
[423518655,1780185044000,-1143.0,0.00027397,2]
[423518660,1780185044000,-443.15839363,0.00027397,2]
[423518659,1780185044000,-1143.0,0.00027397,2]
[423518603,1780185044000,-740.43199768,0.00027397,2]
[423518627,1780185044000,-500.0,0.00027397,2]
[423518632,1780185044000,-1143.0,0.00027397,2]
[423518637,1780185044000,-1143.0,0.00027397,2]
[423518631,1780185044000,-500.0,0.00027397,2]
[423518604,1780185044000,-151.0,0.00027397,2]
[423518599,1780185044000,-1000.0,0.00027397,2]
[423518606,1780185044000,-625.489156,0.00027397,2]
[423518600,1780185044000,-1000.0,0.00027397,2]
[423518601,1780185044000,-1000.0,0.00027397,2]
[423518661,1780185044000,-165.74335774,0.00027397,2]
[423518607,1780185044000,-199.117317,0.00027397,2]
[423518610,1780185044000,-625.489156,0.00027397,2]
[423518612,1780185044000,-625.489156,0.00027397,2]
[423518622,1780185044000,-294.669192,0.00027397,2]
[423518618,1780185044000,-933.273773,0.00027397,2]
[423518614,1780185044000,-268.512687,0.00027397,2]
[423518633,1780185044000,-500.0,0.00027397,2]
[423518621,1780185044000,-933.273781,0.00027397,2]
[423518615,1780185044000,-268.512687,0.00027397,2]
[423518619,1780185044000,-933.273773,0.00027397,2]
[423518626,1780185044000,-1143.0,0.00027397,2]
[423518625,1780185044000,-294.669188,0.00027397,2]
[423518629,1780185044000,-500.0,0.00027397,2]
[423518613,1780185044000,-199.117325,0.00027397,2]
[423518628,1780185044000,-1143.0,0.00027397,2]
[423518630,1780185044000,-1143.0,0.00027397,2]
[423518624,1780185044000,-294.669192,0.00027397,2]
[423518620,1780185044000,-933.273773,0.00027397,2]
[423518611,1780185044000,-199.117317,0.00027397,2]
[423518616,1780185044000,-268.512687,0.00027397,2]
[423518617,1780185044000,-268.512691,0.00027397,2]
[423518623,1780185044000,-294.669192,0.00027397,2]
[423518663,1780185045000,-1230.78820895,0.00011099,2]
[423518662,1780185045000,-407.9659317,0.00011099,2]
[423518696,1780185046000,-243.59903609,0.00011099,2]
[423518698,1780185046000,-633.04947338,0.000149,2]
[423518700,1780185046000,-8876.21619463,0.00015725,2]
[423518706,1780185046000,-150.0,0.0002729,2]
[423518702,1780185046000,-8876.21619463,0.00018587,2]
[423518712,1780185046000,-1143.0,0.00027397,2]
[423518708,1780185046000,-977.25664226,0.00027397,2]
[423518704,1780185046000,-250.0,0.00025119,2]
[423518710,1780185046000,-150.0,0.00027397,2]
[423518713,1780185047000,-28.68905901,0.00027397,2]
[423518843,1780185113000,1600.0,0.00027544,120]
[423518842,1780185113000,1600.0,0.0002479,120]
[423518845,1780185210000,155.044,9.898e-05,2]
[423518844,1780185210000,2105.453,9.898e-05,2]
[423518846,1780185468000,154.66134378,0.0001,2]
[423518847,1780185638000,529.704325,0.0001,2]
[423518848,1780185667000,500.0,0.00027549,120]
[423518850,1780185688000,1149.57,0.00027549,120]
[423518851,1780185778000,353.13621666,0.0001,2]
[423518854,1780185810000,1684.363,9.898e-05,2]
[423518855,1780185810000,155.044,9.898e-05,2]
[423518856,1780185859000,700.0,0.0001,3]
[423518857,1780185919000,235.42414444,0.0001,2]
[423518858,1780185941000,500.0,0.00027549,120]
[423518859,1780186017000,500.0,0.00027671,120]
[423518860,1780186030000,1300.0,0.0001,3]
[423518976,1780186104000,500.0,0.00027671,120]
[423518977,1780186141000,1000.0,0.00027992,120]
[423518978,1780186229000,82082.5582,0.0001,2]
[423518981,1780186232000,-1668.25659861,0.00010099,2]
[423518979,1780186232000,-2019.00692458,0.00010099,2]
[423518980,1780186232000,-500.0,0.00010099,2]
[423518987,1780186232000,-161.52846418,0.00010099,2]
[423518986,1780186232000,-1200.0,0.00010099,2]
[423518982,1780186232000,-250.0,0.00010099,2]
[423518985,1780186232000,-300.0,0.00010099,2]
[423518989,1780186232000,-6925.86101525,0.000109,2]
[423518997,1780186232000,-8519.74073469,0.00011099,2]
[423518983,1780186232000,-193.0,0.00010099,2]
[423518988,1780186232000,-215.58360558,0.00010644,2]
[423518990,1780186232000,-952.90120941,0.000109,2]
[423518993,1780186232000,-8953.63162945,0.00011089,2]
[423518995,1780186232000,-26201.2218086,0.00011089,2]
[423518999,1780186232000,-31800.50535613,0.00011099,2]
[423518984,1780186232000,-150.0,0.00010099,2]
[423519001,1780186232000,-5621.35138048,0.00011099,2]
[423519088,1780186238000,-351.0,0.00011782,2]
[423519096,1780186238000,-299.0,0.000119,2]
[423519098,1780186238000,-200.0,0.00012197,2]
[423519094,1780186238000,-2260.23,0.00011853,2]
[423519099,1780186238000,-357.19249742,0.0001222,2]
[423519092,1780186238000,-570.0,0.00011788,2]
[423519095,1780186238000,-2000.0,0.00011866,2]
[423519091,1780186238000,-5132.0,0.00011788,2]
[423519087,1780186238000,-1667.0,0.00011758,2]
[423519090,1780186238000,-1689.0,0.00011788,2]
[423519084,1780186238000,-152.0,0.00011256,7]
[423519089,1780186238000,-162.42,0.00011784,2]
[423519082,1780186238000,-255.0,0.00011109,2]
[423519080,1780186238000,-193.0,0.00011109,2]
[423519083,1780186238000,-1680.0,0.00011109,2]
[423519079,1780186238000,-500.0,0.00011108,2]
[423519077,1780186238000,-5000.0,0.00011108,2]
[423519075,1780186238000,-7307.93467218,0.00011099,2]
[423519081,1780186238000,-250.0,0.00011109,2]
[423519078,1780186238000,-300.0,0.00011108,2]
[423519086,1780186238000,-209.44,0.00011624,2]
[423519076,1780186238000,-193.0,0.00011108,2]
[423519074,1780186238000,-948.94767356,0.00011099,2]
[423519085,1780186238000,-152.0,0.00011269,7]
[423519093,1780186238000,-395.0,0.00011811,2]
[423519122,1780186238000,-501.41833734,0.00013698,2]
[423519103,1780186238000,-2133.65013459,0.00012298,2]
[423519097,1780186238000,-2260.23,0.00012149,2]
[423519125,1780186238000,-500.0,0.00013698,2]
[423519114,1780186238000,-261.40918799,0.00013047,2]
[423519124,1780186238000,-500.0,0.00013698,2]
[423519120,1780186238000,-500.0,0.00013698,2]
[423519121,1780186238000,-500.0,0.00013698,2]
[423519123,1780186238000,-500.0,0.00013698,2]
[423519119,1780186238000,-156.94942962,0.00013598,2]
[423519116,1780186238000,-2000.0,0.00013349,2]
[423519117,1780186238000,-166.66,0.00013454,2]
[423519115,1780186238000,-209.44,0.00013077,2]
[423519113,1780186238000,-2260.23,0.00013038,2]
[423519118,1780186238000,-159.9,0.0001351,2]
[423519102,1780186238000,-13878.23372614,0.00012226,2]
[423519100,1780186238000,-433.0,0.0001222,2]
[423519108,1780186238000,-40320.24609075,0.00012681,2]
[423519105,1780186238000,-166.66,0.00012428,2]
[423519112,1780186238000,-213.99,0.00013021,2]
[423519111,1780186238000,-500.0,0.000129,2]
[423519110,1780186238000,-2700.0,0.000129,4]
[423519104,1780186238000,-165.03,0.00012411,2]
[423519101,1780186238000,-1481.0,0.0001222,2]